fUST/lending_fUST_20260222
["ID","MTS","AMOUNT","RATE_DAILY","PERIOD"]
[406306691,1771717817726,152.03,7.3e-05,2]
[406306692,1771717818318,152.03,7.3e-05,2]
[406306693,1771717819003,152.03,7.3e-05,2]
[406306694,1771717819604,152.03,7.4e-05,2]
[406306695,1771717820276,152.03,7.4e-05,2]
[406306696,1771717820839,152.03,7.4e-05,2]
[406306697,1771717821500,152.03,7.4e-05,2]
[406306698,1771717822056,152.03,7.4e-05,2]
[406306699,1771717822619,152.03,7.4e-05,2]
[406306700,1771717823329,152.03,7.5e-05,2]
[406306701,1771717823821,152.03,7.5e-05,2]
[406306702,1771717824468,152.03,7.5e-05,2]
[406306703,1771717825014,152.03,7.5e-05,2]
[406306704,1771717825591,152.03,7.5e-05,2]
[406306705,1771717826185,152.03,7.6e-05,2]
[406306706,1771717826740,152.03,7.6e-05,2]
[406306707,1771717827287,152.03,7.6e-05,2]
[406307353,1771717838609,-506.96898466,0.00012297,2]
[406307355,1771717838618,-4572.97457047,0.00012421,2]
[406308099,1771717846016,-427.02542953,0.00012421,2]
[406308101,1771717846032,-1002.45055489,0.00012546,2]
[406308105,1771717846054,-674.9321848,0.00012546,2]
[406308159,1771717846537,-749.41771168,0.00012546,2]
[406309498,1771718345695,602.2,8e-05,2]
[406309499,1771718443198,-3914.41520553,9.093e-05,2]
[406309500,1771718443221,-1085.58479447,9.093e-05,2]
[406309501,1771718472600,-3914.41520553,9.092e-05,2]
[406309535,1771719031604,-969.69337906,8.39e-05,2]
[406309537,1771719031616,-962.90483742,8.39e-05,2]
[406309541,1771719031638,-748.06744344,8.39e-05,2]
[406309545,1771719031666,-564.78544263,8.39e-05,2]
[406309547,1771719031677,-1253.95703757,8.39e-05,2]
[406309550,1771719031697,-500.59185988,8.39e-05,2]
[406309552,1771719031705,-151.3722764,8.475e-05,2]
[406309707,1771719045843,-5000.0,8.39e-05,2]
[406309708,1771719045852,-130.97333884,8.475e-05,2]
[406309709,1771719045862,-300.0,8.56e-05,2]
[406309710,1771719045871,-300.0,8.56e-05,2]
[406309711,1771719045880,-1200.0,8.56e-05,2]
[406309712,1771719045890,-150.0,8.604e-05,2]
[406309713,1771719045899,-1192.48452447,8.88e-05,2]
[406309714,1771719045908,-1919.8138553,9.416e-05,2]
[406309715,1771719045917,-300.0,9.416e-05,2]
[406309716,1771719045926,-300.0,9.416e-05,2]
[406309717,1771719045935,-1200.0,9.416e-05,2]
[406309718,1771719045945,-2234.96904907,9.645e-05,2]
[406309719,1771719045954,-300.0,9.8e-05,2]
[406309720,1771719045963,-2280.29446306,0.00010411,2]
[406309721,1771719045972,-150.0,0.00010604,2]
[406309722,1771719045982,-250.0,0.00011086,2]
[406309723,1771719045991,-2416.27070538,0.00011176,2]
[406309724,1771719046001,-2597.57236181,0.00011942,2]
[406309725,1771719046010,-2158.87464825,0.00012707,2]
[406309800,1771720237949,-726.41897084,8.665e-05,2]
[406310464,1771720245860,-4273.58102916,8.665e-05,2]
[406310466,1771720245870,-5000.0,8.753e-05,2]
[406310468,1771720245880,-1200.0,8.84e-05,2]
[406310470,1771720245889,-544.0,8.841e-05,2]
[406310472,1771720245898,-150.0,8.886e-05,2]
[406310474,1771720245907,-168.9333,9.581e-05,2]
[406310476,1771720245916,-1705.8028345,0.00010313,2]
[406310478,1771720245926,-300.0,0.00010803,2]
[406310480,1771720245935,-292.0,0.00010803,2]
[406310482,1771720245944,-203.77562518,0.00011162,2]
[406310484,1771720245953,-261.29264303,0.0001157,2]
[406310486,1771720245961,-298.62016346,0.0001157,2]
[406310488,1771720245970,-335.56316952,0.0001157,2]
[406310490,1771720245980,-420.0,0.00011874,2]
[406310492,1771720245988,-340.62930985,0.00011927,2]
[406310494,1771720245997,-1012.261636,0.00011991,2]
[406310496,1771720246006,-511.5546148,0.00012234,2]
[406310498,1771720246014,-1012.261636,0.00012495,2]
[406310500,1771720246023,-2042.4256047,0.00012875,2]
[406310502,1771720246032,-1012.261636,0.00013,2]
[406310504,1771720246041,-160.19832627,0.0001305,2]
[406310508,1771720246064,-426.80167373,0.0001305,2]
[406310510,1771720246073,-150.0,0.00013241,2]
[406310512,1771720246083,-150.0,0.00013241,2]
[406310514,1771720246092,-155.76926943,0.00013296,2]
[406310516,1771720246101,-500.0,0.00013309,2]
[406310518,1771720246110,-500.0,0.00013309,2]
[406310520,1771720246119,-500.0,0.00013309,2]
[406310522,1771720246127,-500.0,0.00013309,2]
[406310524,1771720246136,-500.0,0.00013309,2]
[406310526,1771720246145,-500.0,0.00013309,2]
[406310528,1771720246154,-500.0,0.00013309,2]
[406310530,1771720246163,-500.0,0.00013309,2]
[406310532,1771720246172,-500.0,0.00013309,2]
[406310534,1771720246181,-500.0,0.00013309,2]
[406310536,1771720246190,-629.11641352,0.00013309,2]
[406310538,1771720246199,-632.03670668,0.00013309,2]
[406310539,1771720246208,-500.0,0.00013309,2]
[406310540,1771720246217,-500.0,0.00013309,2]
[406310541,1771720246226,-632.49824656,0.00013309,2]
[406310542,1771720246235,-500.0,0.00013309,2]
[406310543,1771720246244,-500.0,0.00013309,2]
[406310545,1771720246253,-500.0,0.00013309,2]
[406310547,1771720246262,-500.0,0.00013309,2]
[406310549,1771720246271,-204.53065082,0.00013309,2]
[406312328,1771721438442,-584.08,0.00010053,2]
[406312423,1771721446018,-502.30072745,0.00010053,2]
[406312430,1771722043460,-160.3527586,9.462e-05,2]
[406312431,1771722043473,-4839.6472414,9.462e-05,2]
[406312432,1771722043483,-160.3527586,9.462e-05,2]
[406312433,1771722100974,168.9333,7.978e-05,2]
[406312434,1771722166744,5000.0,8e-05,2]
[406312435,1771722189504,5000.0,8e-05,2]
[406312436,1771722211929,637.9867,8e-05,2]
[406312437,1771722508778,272.16013042,0.00014,30]
[406312452,1771722632100,-5000.0,7.608e-05,2]
[406312453,1771722632110,-2526.25063981,7.685e-05,2]
[406312454,1771722632121,-480.43172694,7.685e-05,2]
[406312455,1771722632132,-433.18211007,7.685e-05,2]
[406312911,1771722643901,-1560.13552318,7.685e-05,2]
[406312913,1771722643910,-150.0,7.724e-05,2]
[406312915,1771722643919,-1200.0,7.762e-05,2]
[406312917,1771722643928,-300.0,7.956e-05,2]
[406312919,1771722643937,-300.0,7.956e-05,2]
[406312921,1771722643945,-300.0,7.956e-05,2]
[406312923,1771722643954,-300.0,7.956e-05,2]
[406312924,1771722643963,-168.9333,8.159e-05,2]
[406312926,1771722643972,-168.9333,8.341e-05,2]
[406312928,1771722643980,-168.9333,8.522e-05,2]
[406312930,1771722643990,-823.06457835,8.538e-05,2]
[406312933,1771722644001,-856.93542165,8.538e-05,2]
[406312935,1771722644010,-168.9333,8.703e-05,2]
[406312937,1771722644019,-420.0,8.752e-05,2]
[406312939,1771722644027,-168.9333,8.885e-05,2]
[406312941,1771722644038,-101.26750806,8.975e-05,2]
[406312943,1771722644048,-465.115,8.975e-05,2]
[406313171,1771722646180,-78.40888882,8.975e-05,2]
[406313173,1771722646190,-349.5,9e-05,2]
[406313175,1771722646199,-168.9333,9.066e-05,2]
[406313177,1771722646207,-168.9333,9.247e-05,2]
[406313179,1771722646216,-529.06027215,9.281e-05,2]
[406313181,1771722646226,-419.82510404,9.281e-05,2]
[406313183,1771722646235,-479.8001189,9.281e-05,2]
[406313185,1771722646244,-168.9333,9.428e-05,2]
[406313187,1771722646252,-1182.34254411,9.566e-05,2]
[406313189,1771722646261,-186.47,9.603e-05,2]
[406313191,1771722646270,-168.9333,9.61e-05,2]
[406313193,1771722646279,-587.0,9.627e-05,2]
[406313195,1771722646288,-65.50527711,9.628e-05,2]
[406314842,1771723824646,-959.49729829,8.365e-05,2]
[406314861,1771723832350,-384.768375,8.365e-05,2]
[406314862,1771723832362,-336.635,8.365e-05,2]
[406314869,1771723838686,-308.66391742,8.365e-05,2]
[406315274,1771723846504,-539.46251828,8.365e-05,2]
[406315275,1771723846516,-2470.97289101,8.365e-05,2]
[406315276,1771723846526,-5000.0,8.45e-05,2]
[406315277,1771723846535,-539.0,8.45e-05,2]
[406315278,1771723846545,-1200.0,8.534e-05,2]
[406315279,1771723846554,-300.0,8.75e-05,2]
[406315280,1771723846563,-150.0,8.752e-05,2]
[406315281,1771723846572,-1157.20510516,8.854e-05,2]
[406315282,1771723846581,-3308.87135297,9.121e-05,2]
[406315310,1771724242906,376.64147977,7.5e-05,2]
[406315311,1771724251503,5000.0,7.5e-05,2]
[406315312,1771724273744,5000.0,7.5e-05,2]
[406315314,1771724295536,5000.0,7.5e-05,2]
[406315315,1771724317164,5000.0,7.5e-05,2]
[406315317,1771724339022,4623.35852023,7.5e-05,2]
[406315319,1771724914810,5000.0,7.001e-05,2]
[406315320,1771724936486,5000.0,7.001e-05,2]
[406315321,1771724959137,5000.0,7.001e-05,2]
[406315322,1771724981005,5000.0,7.001e-05,2]
[406315323,1771725003003,5000.0,7.001e-05,2]
[406315324,1771725012128,5000.0,7.001e-05,2]
[406315325,1771725027486,5000.0,7.001e-05,2]
[406315353,1771725032445,-434.44183182,7.132e-05,2]
[406315397,1771725035183,711.34519696,7.001e-05,2]
[406315436,1771725038681,-86.55816818,7.132e-05,2]
[406315438,1771725038692,-150.0,7.241e-05,2]
[406315440,1771725038703,-1200.0,7.459e-05,2]
[406315443,1771725038715,-179.037088,7.479e-05,2]
[406315444,1771725038725,-300.0,7.499e-05,2]
[406315447,1771725038738,-300.0,7.499e-05,2]
[406315448,1771725038748,-300.0,7.499e-05,2]
[406315450,1771725038758,-300.0,7.499e-05,2]
[406315452,1771725038768,-278.78555903,7.57e-05,2]
[406315454,1771725038777,-318.61206746,7.57e-05,2]
[406315456,1771725038787,-236.0,7.951e-05,2]
[406315459,1771725038797,-10000.0,7.952e-05,2]
[406315462,1771725038807,-242.9972017,8.078e-05,2]
[406315465,1771725038817,-1680.0,8.205e-05,2]
[406315468,1771725038826,-291.671547,8.219e-05,2]
[406315471,1771725038836,-420.0,8.249e-05,2]
[406315473,1771725038845,-394.82048912,8.894e-05,2]
[406315475,1771725038856,-155.698,8.951e-05,2]
[406315478,1771725038868,-2351.0,9.025e-05,2]
[406315480,1771725038877,-587.0,9.074e-05,2]
[406315481,1771725038887,-500.0,9.12e-05,2]
[406315483,1771725038897,-500.0,9.12e-05,2]
[406315486,1771725038907,-500.0,9.12e-05,2]
[406315487,1771725038916,-500.0,9.12e-05,2]
[406315489,1771725038925,-500.0,9.12e-05,2]
[406315491,1771725038935,-500.0,9.12e-05,2]
[406315493,1771725038945,-379.32730476,9.12e-05,2]
[406315495,1771725038954,-500.0,9.12e-05,2]
[406315497,1771725038963,-218.34666806,9.12e-05,2]
[406315499,1771725038973,-500.0,9.12e-05,2]
[406315501,1771725038982,-500.0,9.12e-05,2]
[406315503,1771725038991,-501.89634316,9.12e-05,2]
[406315505,1771725039000,-500.0,9.12e-05,2]
[406315507,1771725039010,-500.0,9.12e-05,2]
[406315509,1771725039019,-500.0,9.12e-05,2]
[406315511,1771725039029,-500.0,9.12e-05,2]
[406315514,1771725039039,-500.0,9.12e-05,2]
[406315516,1771725039049,-500.0,9.12e-05,2]
[406315517,1771725039059,-500.0,9.12e-05,2]
[406315519,1771725039068,-500.0,9.12e-05,2]
[406315521,1771725039077,-500.0,9.12e-05,2]
[406315524,1771725039087,-472.1148049,9.12e-05,2]
[406315525,1771725039097,-500.0,9.12e-05,2]
[406315527,1771725039107,-17086.94438522,9.121e-05,2]
[406315630,1771725046570,-1041.66666667,9.121e-05,2]
[406315631,1771725628883,4133.38816706,8.5e-05,2]
[406315739,1771726245748,-160.3527586,8.397e-05,2]
[406315743,1771727125581,10000.0,7e-05,2]
[406315745,1771727166351,8752.0,7e-05,2]
[406315747,1771727314619,390.0,0.00014,30]
[406315749,1771727424764,-1085.10969329,7.8e-05,2]
[406315786,1771727431848,-973.0,7.8e-05,2]
[406315789,1771727431860,-2941.89030671,7.8e-05,2]
[406315791,1771727431869,-119.26562615,7.8e-05,2]
[406315816,1771727437948,-410.73437385,7.8e-05,2]
[406315819,1771727437958,-150.0,7.919e-05,2]
[406315821,1771727437968,-381.08354137,8.88e-05,2]
[406315823,1771727437980,-818.91645863,8.88e-05,2]
[406315825,1771727437990,-950.7591735,8.881e-05,2]
[406315827,1771727438000,-300.0,8.892e-05,2]
[406315829,1771727438010,-300.0,8.892e-05,2]
[406315831,1771727438019,-10000.0,8.893e-05,2]
[406315833,1771727438029,-151.0,8.893e-05,2]
[406315835,1771727438039,-151.0,8.893e-05,2]
[406315837,1771727438048,-151.0,8.893e-05,2]
[406315839,1771727438058,-151.0,8.893e-05,2]
[406315841,1771727438067,-151.0,8.893e-05,2]
[406315843,1771727438077,-151.0,9.05e-05,2]
[406315846,1771727438087,-151.0,9.05e-05,2]
[406315848,1771727438096,-219.274053,9.05e-05,2]
[406315850,1771727438106,-2875.20591737,9.05e-05,2]
[406315852,1771727438115,-151.0,9.235e-05,2]
[406315854,1771727438124,-232.512108,9.235e-05,2]
[406315856,1771727438133,-150.0,9.426e-05,2]
[406315859,1771727438143,-500.0,9.44e-05,2]
[406315862,1771727438153,-500.0,9.44e-05,2]
[406315865,1771727438163,-500.2107048,9.44e-05,2]
[406315868,1771727438172,-500.0,9.44e-05,2]
[406315871,1771727438182,-500.0,9.44e-05,2]
[406315874,1771727438191,-500.0,9.44e-05,2]
[406315876,1771727438200,-500.0,9.44e-05,2]
[406315877,1771727438210,-500.0,9.44e-05,2]
[406315878,1771727438219,-500.0,9.44e-05,2]
[406315879,1771727438229,-500.0,9.44e-05,2]
[406315880,1771727438239,-500.0,9.44e-05,2]
[406315881,1771727438250,-500.0,9.44e-05,2]
[406315882,1771727438259,-500.0,9.44e-05,2]
[406315883,1771727438269,-242.69488642,9.44e-05,2]
[406315884,1771727438278,-500.0,9.44e-05,2]
[406315885,1771727438288,-500.0,9.44e-05,2]
[406315886,1771727438297,-500.0,9.44e-05,2]
[406315887,1771727438307,-500.0,9.44e-05,2]
[406315888,1771727438317,-500.0,9.44e-05,2]
[406315889,1771727438326,-605.97011657,9.44e-05,2]
[406315890,1771727438336,-151.0,9.441e-05,2]
[406315891,1771727438345,-194.487,9.441e-05,2]
[406315892,1771727438355,-151.0,9.441e-05,2]
[406315893,1771727438365,-151.0,9.441e-05,2]
[406315894,1771727438375,-4310.3119316,9.441e-05,2]
[406315895,1771727438385,-192.47081708,9.481e-05,2]
[406315896,1771727438394,-500.0,9.589e-05,2]
[406315897,1771727438404,-151.0,9.59e-05,2]
[406315898,1771727438513,-151.0,9.59e-05,2]
[406315899,1771727438525,-151.0,9.59e-05,2]
[406315900,1771727438534,-151.0,9.59e-05,2]
[406315901,1771727438545,-151.0,9.694e-05,2]
[406315902,1771727438555,-151.0,9.694e-05,2]
[406315903,1771727438566,-526.0,9.7e-05,2]
[406315904,1771727438578,-254.0,9.768e-05,2]
[406315905,1771727438587,-420.0,9.781e-05,2]
[406315906,1771727438597,-168.9333,9.791e-05,2]
[406315907,1771727438606,-500.0,9.863e-05,2]
[406315908,1771727438616,-265.28,9.9e-05,2]
[406315909,1771727438626,-177.0,9.919e-05,2]
[406315910,1771727438635,-168.9333,9.972e-05,2]
[406315911,1771727438645,-151.0,0.0001,2]
[406315912,1771727438654,-151.0,0.0001,2]
[406315913,1771727438665,-151.0,0.0001,2]
[406315914,1771727438676,-151.0,0.0001,2]
[406315915,1771727438686,-151.0,0.0001,2]
[406315916,1771727438696,-151.0,0.0001,2]
[406315917,1771727438706,-154.02009222,0.0001,2]
[406315918,1771727438716,-500.0,0.00010137,2]
[406315919,1771727438725,-221.07117803,0.00010186,2]
[406315920,1771727438735,-270.5082706,0.00010407,2]
[406315921,1771727438745,-500.0,0.00010411,2]
[406315922,1771727438756,-447.47193963,0.00010595,2]
[406315923,1771727438765,-426.52706477,0.00010618,2]
[406315924,1771727438775,-500.0,0.00010685,2]
[406315925,1771727438785,-587.0,0.00010759,2]
[406315926,1771727438794,-1000.0,0.000108,2]
[406315927,1771727438804,-1000.0,0.000108,2]
[406315928,1771727438815,-1000.0,0.000108,2]
[406315929,1771727438825,-1000.0,0.000108,2]
[406315930,1771727438835,-809.16303126,0.00010891,2]
[406315931,1771727438846,-5028.1427094,0.00010959,2]
[406315932,1771727438858,-500.0,0.00010959,2]
[406315933,1771727438868,-506.130818,0.00011148,2]
[406315934,1771727438878,-500.0,0.00011233,2]
[406315935,1771727438889,-357.2,0.000113,2]
[406315936,1771727438900,-190.40178506,0.00011343,2]
[406315937,1771727438911,-150.91962384,0.00011343,2]
[406315938,1771727438921,-151.8641897,0.00011343,2]
[406315939,1771727438931,-167.16553594,0.00011343,2]
[406315940,1771727438941,-155.55495727,0.00011343,2]
[406315941,1771727438951,-233.56811045,0.00011343,2]
[406315942,1771727438961,-282.4566292,0.00011343,2]
[406315943,1771727438972,-500.0,0.00011507,2]
[406315944,1771727438982,-205.98040473,0.00011617,2]
[406315945,1771727439013,-300.15041327,0.00011617,2]
[406315946,1771727439023,-500.0,0.00011781,2]
[406315947,1771727439032,-823.0,0.00011835,2]
[406315948,1771727439042,-204.0,0.00011919,2]
[406315949,1771727439051,-511.50341455,0.00012055,2]
[406315950,1771727439061,-506.130818,0.00012086,2]
[406315951,1771727439070,-378.87433384,0.00012328,2]
[406315952,1771727439080,-615.632116,0.00012329,2]
[406315953,1771727439089,-2851.74,0.00012329,2]
[406315954,1771727439099,-2546.97,0.00012329,2]
[406315955,1771727439108,-2122.47,0.00012329,2]
[406315956,1771727439118,-1768.73,0.00012329,2]
[406315957,1771727439131,-1473.94,0.00012329,2]
[406315958,1771727439142,-1228.28,0.00012329,2]
[406315959,1771727439154,-1023.57,0.00012329,2]
[406315960,1771727439167,-852.97,0.00012329,2]
[406315961,1771727439177,-710.81,0.00012329,2]
[406315962,1771727439187,-592.34,0.00012329,2]
[406315963,1771727439196,-493.62,0.00012329,2]
[406315964,1771727439205,-411.35,0.00012329,2]
[406315965,1771727439214,-342.79,0.00012329,2]
[406315966,1771727439223,-285.66,0.00012329,2]
[406315967,1771727439232,-238.05,0.00012329,2]
[406315968,1771727439242,-198.38,0.00012329,2]
[406315969,1771727439251,-10966.35602824,0.000125,2]
[406315970,1771727439261,-506.130818,0.00012555,2]
[406315971,1771727439270,-151.0,0.00012643,2]
[406315972,1771727439279,-151.0,0.00012643,2]
[406315973,1771727439289,-151.0,0.00012643,2]
[406315974,1771727439298,-151.0,0.00012643,2]
[406315975,1771727439307,-151.0,0.00012643,2]
[406315976,1771727439316,-151.0,0.00012643,2]
[406315977,1771727439325,-151.0,0.00012643,2]
[406315978,1771727439334,-151.0,0.00012643,2]
[406315979,1771727439343,-151.0,0.00012643,2]
[406315980,1771727439352,-151.0,0.00012643,2]
[406315981,1771727439361,-209.40437684,0.00012643,2]
[406315982,1771727439371,-250.0,0.00012643,2]
[406315983,1771727439380,-500.0,0.00012643,2]
[406315984,1771727439390,-151.0,0.00012643,2]
[406315985,1771727439400,-217.15233878,0.00012643,2]
[406315986,1771727439409,-250.0,0.00012643,2]
[406315987,1771727439419,-250.0,0.00012643,2]
[406315988,1771727439428,-500.0,0.00012643,2]
[406315989,1771727439438,-151.0,0.00012643,2]
[406315990,1771727439447,-225.18697532,0.00012643,2]
[406315991,1771727439456,-250.0,0.00012643,2]
[406315992,1771727439466,-250.0,0.00012643,2]
[406315993,1771727439475,-151.0,0.00012643,2]
[406315994,1771727439485,-233.51889341,0.00012643,2]
[406315995,1771727439495,-250.0,0.00012643,2]
[406315996,1771727439507,-250.0,0.00012643,2]
[406315997,1771727439517,-500.0,0.00012643,2]
[406315998,1771727439528,-151.0,0.00012643,2]
[406315999,1771727439537,-242.15909246,0.00012643,2]
[406316000,1771727439546,-250.0,0.00012643,2]
[406316001,1771727439556,-500.0,0.00012643,2]
[406316002,1771727439565,-250.0,0.00012643,2]
[406316003,1771727439575,-250.0,0.00012643,2]
[406316004,1771727439584,-151.0,0.00012643,2]
[406316005,1771727439593,-251.11897888,0.00012643,2]
[406316006,1771727439603,-500.0,0.00012643,2]
[406316007,1771727439614,-250.0,0.00012643,2]
[406316008,1771727439624,-250.0,0.00012643,2]
[406316009,1771727439634,-250.0,0.00012643,2]
[406316010,1771727439644,-151.0,0.00012643,2]
[406316011,1771727439653,-260.4103811,0.00012643,2]
[406316012,1771727439662,-500.0,0.00012643,2]
[406316013,1771727439679,-250.0,0.00012643,2]
[406316014,1771727439688,-250.0,0.00012643,2]
[406316015,1771727439697,-250.0,0.00012643,2]
[406316016,1771727439706,-151.0,0.00012643,2]
[406316017,1771727439715,-250.0,0.00012643,2]
[406316018,1771727439725,-250.0,0.00012643,2]
[406316019,1771727439734,-500.0,0.00012643,2]
[406316020,1771727439743,-250.0,0.00012643,2]
[406316021,1771727439752,-151.0,0.00012643,2]
[406316022,1771727439761,-270.0455652,0.00012643,2]
[406316023,1771727439771,-250.0,0.00012643,2]
[406316024,1771727439780,-250.0,0.00012643,2]
[406316026,1771727439789,-500.0,0.00012643,2]
[406316027,1771727439862,-250.0,0.00012643,2]
[406316028,1771727439871,-151.0,0.00012643,2]
[406316029,1771727439880,-280.03725112,0.00012643,2]
[406316030,1771727439889,-250.0,0.00012643,2]
[406316031,1771727439899,-500.0,0.00012643,2]
[406316032,1771727439907,-250.0,0.00012643,2]
[406316033,1771727439916,-250.0,0.00012643,2]
[406316034,1771727439925,-151.0,0.00012643,2]
[406316035,1771727439934,-290.39862941,0.00012643,2]
[406316036,1771727439943,-250.0,0.00012643,2]
[406316037,1771727439952,-500.0,0.00012643,2]
[406316038,1771727439961,-250.0,0.00012643,2]
[406316039,1771727439970,-250.0,0.00012643,2]
[406316040,1771727439979,-301.1433787,0.00012643,2]
[406316041,1771727439988,-250.0,0.00012643,2]
[406316042,1771727439997,-500.0,0.00012643,2]
[406316043,1771727440006,-250.0,0.00012643,2]
[406316045,1771727440015,-250.0,0.00012643,2]
[406316047,1771727440024,-250.0,0.00012643,2]
[406316048,1771727440032,-250.0,0.00012643,2]
[406316049,1771727440042,-209.40437684,0.00012643,2]
[406316050,1771727440051,-151.0,0.00012643,2]
[406316051,1771727440059,-209.40437684,0.00012643,2]
[406316053,1771727440069,-151.0,0.00012643,2]
[406316054,1771727440078,-151.0,0.00012643,2]
[406316055,1771727440086,-151.0,0.00012643,2]
[406316056,1771727440095,-151.0,0.00012643,2]
[406316057,1771727440104,-151.0,0.00012643,2]
[406316058,1771727440113,-151.0,0.00012643,2]
[406316059,1771727440123,-151.0,0.00012643,2]
[406316060,1771727440131,-151.0,0.00012643,2]
[406316061,1771727440140,-151.0,0.00012643,2]
[406316062,1771727440149,-151.0,0.00012643,2]
[406316063,1771727440158,-155.261,0.00012721,2]
[406316064,1771727440167,-775.0,0.000128,2]
[406316065,1771727440176,-160.0,0.00012865,3]
[406316066,1771727440185,-160.0,0.00012931,4]
[406316067,1771727440194,-160.0,0.00012997,5]
[406316068,1771727440204,-500.0,0.00013,2]
[406316069,1771727440213,-396.78,0.00013,2]
[406316070,1771727440222,-208.2,0.00013,2]
[406316072,1771727440231,-285.97,0.00013,2]
[406316073,1771727440240,-1152.0,0.00013018,2]
[406316074,1771727440248,-506.130818,0.00013025,2]
[406316075,1771727440258,-1162.33021295,0.00013043,2]
[406316076,1771727440267,-160.0,0.00013062,6]
[406316077,1771727440276,-160.0,0.00013128,7]
[406316078,1771727440285,-217.15233878,0.00013191,2]
[406316079,1771727440295,-160.0,0.00013194,8]
[406316080,1771727440304,-160.0,0.0001326,9]
[406316081,1771727440313,-500.59194568,0.00013273,2]
[406316082,1771727440322,-289.5950094,0.00013273,2]
[406316083,1771727440331,-501.05680751,0.00013273,2]
[406316085,1771727440341,-219.21729088,0.00013273,2]
[406316087,1771727440351,-265.75577448,0.00013273,2]
[406316088,1771727440360,-501.59094481,0.00013273,2]
[406316089,1771727440370,-501.10033972,0.00013273,2]
[406316090,1771727440379,-317.90777841,0.00013273,2]
[406316091,1771727440389,-503.05927767,0.00013273,2]
[406316092,1771727440398,-501.76377255,0.00013273,2]
[406316093,1771727440407,-446.11714664,0.00013273,2]
[406316094,1771727440417,-500.33305128,0.00013273,2]
[406316095,1771727440427,-500.16802643,0.00013273,2]
[406316096,1771727440436,-500.15246547,0.00013273,2]
[406316097,1771727440446,-162.82933102,0.00013273,2]
[406316098,1771727440455,-500.69602972,0.00013273,2]
[406316099,1771727440464,-504.15418879,0.00013273,2]
[406316100,1771727440473,-500.18099195,0.00013273,2]
[406316101,1771727440482,-500.50717506,0.00013273,2]
[406316102,1771727440491,-500.82592235,0.00013273,2]
[406316103,1771727440502,-486.34790965,0.00013273,2]
[406316104,1771727440516,-64.61801537,0.00013273,2]
[406316105,1771727440525,-500.81758958,0.00013273,2]
[406316106,1771727440534,-501.57243385,0.00013273,2]
[406316107,1771727440546,-506.2413381,0.00013273,2]
[406316108,1771727440560,-500.69742413,0.00013273,2]
[406316109,1771727440571,-500.0,0.00013273,2]
[406316110,1771727440581,-500.53805188,0.00013273,2]
[406316111,1771727440591,-502.88839331,0.00013273,2]
[406316112,1771727440599,-199.75891735,0.00013273,2]
[406316119,1771727443325,-300.45736359,0.00013273,2]
[406316120,1771727443334,-211.92589823,0.00013273,2]
[406316121,1771727443343,-500.93813345,0.00013273,2]
[406316122,1771727443352,-166.35807226,0.00013273,2]
[406316123,1771727443363,-335.13026493,0.00013273,2]
[406316124,1771727443372,-500.19126229,0.00013273,2]
[406316125,1771727443380,-509.96031504,0.00013273,2]
[406316126,1771727443391,-500.55581044,0.00013273,2]
[406316127,1771727443400,-270.30794795,0.00013273,2]
[406316128,1771727443409,-500.45706898,0.00013273,2]
[406316129,1771727443419,-500.22725167,0.00013273,2]
[406316130,1771727443429,-139.40337961,0.00013273,2]
[406316138,1771727445918,-312.9292784,0.00012643,2]
[406316139,1771727445929,-859.32594132,0.0001314,2]
[406316140,1771728004780,380.97,6.9e-05,2]
[406316141,1771728005228,380.97,6.9e-05,2]
[406316142,1771728005776,380.97,6.9e-05,2]
[406316143,1771728006379,380.97,6.9e-05,2]
[406316144,1771728006932,380.97,7e-05,2]